[Event "DVM U12w 2024"]
[Site "Bad Homburg"]
[Date "2024.12.29"]
[Round "5"]
[White "Feldhaus, Lena"]
[Black "Winkler, Frida"]
[Result "0-1"]
[ECO "D00"]
[WhiteElo "1539"]
[BlackElo "1555"]
[Annotator "NA"]
[PlyCount "80"]
[EventDate "2024.12.23"]
[EventType "team-tourn"]
[EventRounds "7"]
[EventCountry "GER"]
[SourceTitle "playchess.com"]
[Source "ChessBase"]
[SourceQuality "1"]
[TimeControl "40/5400+30:1800+30"]

1. d4 {[%emt 0:00:03]} d5 {[%emt 0:00:14]} 2. Nc3 {[%emt 0:01:11]} Nf6 {[%emt 0:00:11]} 3. Bf4 {[%emt 0:00:15]} c5 {[%emt 0:00:13]} 4. Qd2 {[%emt 0:10:38]} a6 {[%emt 0:04:53]} 5. f3 {[%emt 0:04:29]} Nc6 {[%emt 0:00:40]} 6. e3 {[%emt 0:09:14]} cxd4 {[%emt 0:02:21]} 7. exd4 {[%emt 0:01:41]} Qb6 {[%emt 0:04:40]} 8. O-O-O {[%emt 0:06:57]} g6 {[%emt 0:05:13]} 9. Be5 {[%emt 0:06:53]} Be6 {[%emt 0:10:04]} 10. g4 {[%emt 0:12:25]} Rd8 {[%emt 0:10:19]} 11. g5 {[%emt 0:04:00]} Nxe5 {[%emt 0:01:41]} 12. gxf6 {[%emt 0:01:11]} Nc6 {[%emt 0:01:16]} 13. fxe7 {[%emt 0:00:18]} Nxe7 {[%emt 0:00:26]} 14. Nge2 {[%emt 0:02:00]} Nc6 {[%emt 0:03:26]} 15. Qe3 {[%emt 0:04:13]} Bg7 {[%emt 0:01:32]} 16. Bh3 {[%emt 0:07:36]} Na5 {[%emt 0:05:16]} 17. Bxe6 {[%emt 0:01:16]} fxe6 {[%emt 0:01:17]} 18. Nf4 {[%emt 0:03:44]} Bh6 {[%emt 0:04:22]} 19. Rhe1 {[%emt 0:01:02]} Qxb2+ {[%emt 0:03:45]} 20. Kxb2 {[%emt 0:01:29]} Nc4+ {[%emt 0:00:09]} 21. Kc1 {[%emt 0:00:32]} Nxe3 {[%emt 0:00:36]} 22. Nxe6 {[%emt 0:00:42]} Nxd1+ {[%emt 0:02:40]} 23. Kxd1 {[%emt 0:00:19]} Rd6 {[%emt 0:01:48]} 24. Nxd5 {[%emt 0:01:26]} Kf7 {[%emt 0:02:11]} 25. Ndc7 {[%emt 0:01:36]} Bg7 {[%emt 0:02:22]} 26. Nxg7 {[%emt 0:00:43]} Kxg7 {[%emt 0:00:52]} 27. Ne6+ {[%emt 0:01:14]} Kf6 {[%emt 0:00:24]} 28. Nc5 {[%emt 0:07:10]} Rxd4+ {[%emt 0:00:24]} 29. Kc1 {[%emt 0:00:22]} Rd5 {[%emt 0:02:41]} 30. Ne4+ {[%emt 0:02:55]} Kf5 {[%emt 0:01:11]} 31. Ng3+ {[%emt 0:00:44]} Kf4 {[%emt 0:00:17]} 32. Re7 {[%emt 0:01:08]} Kxf3 {[%emt 0:00:37]} 33. Rxb7 {[%emt 0:00:17]} Kg2 {[%emt 0:00:19]} 34. Rb6 {[%emt 0:00:43]} a5 {[%emt 0:00:31]} 35. c4 {[%emt 0:00:58]} Rc5 {[%emt 0:00:18]} 36. Rb2+ {[%emt 0:00:17]} Kh3 {[%emt 0:00:19]} 37. Rc2 {[%emt 0:00:22]} Rhc8 {[%emt 0:00:25]} 38. Rd2 {[%emt 0:01:46]} Rxc4+ {[%emt 0:00:15]} 39. Kb2 {[%emt 0:02:52]} Rb4+ {[%emt 0:00:46]} 40. Ka3 {[%emt 0:00:47]} Rc3# {[%emt 0:00:40]} 0-1

[Event "DVM U12w 2024"]
[Site "Bad Homburg"]
[Date "2024.12.29"]
[Round "5"]
[White "Mersmann, Jasmin"]
[Black "Mandziuk, Varvara"]
[Result "1-0"]
[ECO "C48"]
[WhiteElo "1527"]
[BlackElo "1160"]
[Annotator "NA"]
[PlyCount "91"]
[EventDate "2024.12.23"]
[EventType "team-tourn"]
[EventRounds "7"]
[EventCountry "GER"]
[SourceTitle "playchess.com"]
[Source "ChessBase"]
[SourceQuality "1"]
[TimeControl "40/5400+30:1800+30"]

1. e4 {[%emt 0:00:04]} e5 {[%emt 0:00:05]} 2. Nf3 {[%emt 0:00:03]} Nc6 {[%emt 0:00:09]} 3. Nc3 {[%emt 0:00:08]} Nf6 {[%emt 0:00:07]} 4. Bb5 {[%emt 0:00:07]} Nd4 {[%emt 0:00:09]} 5. Ba4 {[%emt 0:01:09]} Bc5 {[%emt 0:03:11]} 6. O-O {[%emt 0:00:57]} Qe7 {[%emt 0:06:02]} 7. d3 {[%emt 0:00:51]} h6 {[%emt 0:00:15]} 8. Nxd4 {[%emt 0:00:58]} Bxd4 {[%emt 0:00:37]} 9. Ne2 {[%emt 0:00:45]} Bb6 {[%emt 0:01:19]} 10. h3 {[%emt 0:00:54]} O-O {[%emt 0:00:19]} 11. Kh1 {[%emt 0:00:13]} d5 {[%emt 0:00:23]} 12. exd5 {[%emt 0:03:22]} Nxd5 {[%emt 0:00:10]} 13. Bb3 {[%emt 0:00:52]} Be6 {[%emt 0:00:39]} 14. d4 {[%emt 0:05:57]} Qf6 {[%emt 0:02:49]} 15. dxe5 {[%emt 0:03:23]} Qxe5 {[%emt 0:00:10]} 16. Ng3 {[%emt 0:04:46]} Qd6 {[%emt 0:00:40]} 17. Qf3 {[%emt 0:01:29]} c6 {[%emt 0:00:48]} 18. Rd1 {[%emt 0:06:58]} Qc5 {[%emt 0:02:42]} 19. Ne4 {[%emt 0:00:00]} Qe7 {[%emt 0:01:40]} 20. c4 {[%emt 0:04:07]} Nc7 {[%emt 0:03:24]} 21. Bf4 {[%emt 0:01:29]} Rad8 {[%emt 0:03:38]} 22. Bd6 {[%emt 0:00:38]} Rxd6 {[%emt 0:03:44]} 23. Nxd6 {[%emt 0:01:36]} Qh4 {[%emt 0:02:05]} 24. Qg3 {[%emt 0:01:27]} Qh5 {[%emt 0:00:52]} 25. Ne4 {[%emt 0:01:08]} f6 {[%emt 0:02:33]} 26. c5 {[%emt 0:02:32]} Bxb3 {[%emt 0:00:47]} 27. axb3 {[%emt 0:00:26]} f5 {[%emt 0:01:36]} 28. cxb6 {[%emt 0:00:45]} axb6 {[%emt 0:00:35]} 29. Qxc7 {[%emt 0:00:51]} fxe4 {[%emt 0:00:10]} 30. Qxb6 {[%emt 0:01:20]} Qh4 {[%emt 0:00:11]} 31. Rf1 {[%emt 0:00:56]} g5 {[%emt 0:00:09]} 32. Qe3 {[%emt 0:00:59]} g4 {[%emt 0:00:12]} 33. Qg3 {[%emt 0:00:12]} Qh5 {[%emt 0:00:07]} 34. Qxg4+ {[%emt 0:00:09]} Qxg4 {[%emt 0:00:05]} 35. hxg4 {[%emt 0:00:06]} Rf4 {[%emt 0:00:05]} 36. Ra8+ {[%emt 0:00:14]} Kg7 {[%emt 0:00:07]} 37. Ra7 {[%emt 0:00:12]} Rxg4 {[%emt 0:00:03]} 38. Rxb7+ {[%emt 0:00:08]} Kf6 {[%emt 0:00:04]} 39. Rb6 {[%emt 0:00:38]} h5 {[%emt 0:00:19]} 40. Rxc6+ {[%emt 0:00:18]} Kg5 {[%emt 0:00:10]} 41. Rc8 {[%emt 0:30:25]} h4 {[%emt 0:30:08]} 42. Rg8+ {[%emt 0:00:05]} Kf4 {[%emt 0:00:06]} 43. Rxg4+ {[%emt 0:00:04]} Kxg4 {[%emt 0:00:13]} 44. b4 {[%emt 0:00:09]} h3 {[%emt 0:00:04]} 45. gxh3+ {[%emt 0:00:09]} Kxh3 {[%emt 0:00:10]} 46. Rg1 {[%emt 0:00:08]} 1-0

[Event "DVM U12w 2024"]
[Site "Bad Homburg"]
[Date "2024.12.29"]
[Round "5"]
[White "Suryaprakash, Smrithi"]
[Black "Briese, Sophie"]
[Result "1/2-1/2"]
[ECO "B41"]
[WhiteElo "1527"]
[BlackElo "1465"]
[Annotator "NA"]
[PlyCount "84"]
[EventDate "2024.12.23"]
[EventType "team-tourn"]
[EventRounds "7"]
[EventCountry "GER"]
[SourceTitle "playchess.com"]
[Source "ChessBase"]
[SourceQuality "1"]
[TimeControl "40/5400+30:1800+30"]

1. e4 {[%emt 0:00:12]} c5 {[%emt 0:00:05]} 2. Nf3 {[%emt 0:00:05]} e6 {[%emt 0:00:08]} 3. d4 {[%emt 0:00:05]} cxd4 {[%emt 0:00:25]} 4. Nxd4 {[%emt 0:00:07]} a6 {[%emt 0:00:09]} 5. Be3 {[%emt 0:00:17]} Qc7 {[%emt 0:00:21]} 6. c3 {[%emt 0:00:15]} Nf6 {[%emt 0:01:30]} 7. Nd2 {[%emt 0:00:28]} b5 {[%emt 0:01:54]} 8. Bd3 {[%emt 0:03:34]} Bb7 {[%emt 0:01:32]} 9. h3 {[%emt 0:03:24]} d5 {[%emt 0:03:24]} 10. Qc2 {[%emt 0:05:46]} h6 {[%emt 0:03:03]} 11. O-O {[%emt 0:13:35]} Bd6 {[%emt 0:01:54]} 12. Rae1 {[%emt 0:07:26]} O-O {[%emt 0:02:33]} 13. N4f3 {[%emt 0:09:56]} Nc6 {[%emt 0:03:20]} 14. Nd4 {[%emt 0:04:17]} Rac8 {[%emt 0:05:35]} 15. a3 {[%emt 0:07:39]} Nxd4 {[%emt 0:05:34]} 16. Bxd4 {[%emt 0:00:39]} e5 {[%emt 0:00:24]} 17. f4 {[%emt 0:06:22]} dxe4 {[%emt 0:05:47]} 18. fxe5 {[%emt 0:03:32]} Bxe5 {[%emt 0:01:15]} 19. Bxe5 {[%emt 0:00:42]} Qxe5 {[%emt 0:00:20]} 20. Nxe4 {[%emt 0:01:01]} Nxe4 {[%emt 0:00:24]} 21. Bxe4 {[%emt 0:00:15]} Bxe4 {[%emt 0:00:10]} 22. Qxe4 {[%emt 0:00:38]} Qxe4 {[%emt 0:01:27]} 23. Rxe4 {[%emt 0:00:14]} Rfe8 {[%emt 0:00:29]} 24. Rfe1 {[%emt 0:01:36]} Red8 {[%emt 0:01:10]} 25. R4e2 {[%emt 0:01:09]} Rd7 {[%emt 0:03:53]} 26. Re8+ {[%emt 0:04:57]} Rxe8 {[%emt 0:00:08]} 27. Rxe8+ {[%emt 0:00:05]} Kh7 {[%emt 0:00:09]} 28. Re2 {[%emt 0:00:24]} g5 {[%emt 0:00:43]} 29. g4 {[%emt 0:02:58]} Kg6 {[%emt 0:00:38]} 30. Kf2 {[%emt 0:01:49]} h5 {[%emt 0:00:35]} 31. b3 {[%emt 0:05:47]} Rd3 {[%emt 0:01:52]} 32. Re3 {[%emt 0:00:06]} Rxe3 {[%emt 0:00:49]} 33. Kxe3 {[%emt 0:00:06]} hxg4 {[%emt 0:00:05]} 34. hxg4 {[%emt 0:00:07]} f5 {[%emt 0:00:06]} 35. Kf3 {[%emt 0:01:19]} fxg4+ {[%emt 0:01:54]} 36. Kxg4 {[%emt 0:00:07]} Kf6 {[%emt 0:00:16]} 37. a4 {[%emt 0:01:22]} bxa4 {[%emt 0:00:43]} 38. bxa4 {[%emt 0:00:24]} a5 {[%emt 0:02:22]} 39. c4 {[%emt 0:00:20]} Ke5 {[%emt 0:00:13]} 40. Kxg5 {[%emt 0:00:05]} Kd4 {[%emt 0:00:10]} 41. Kf4 {[%emt 0:30:04]} Kxc4 {[%emt 0:31:04]} 42. Ke3 {[%emt 0:00:07]} Kb4 {[%emt 0:02:28]} 1/2-1/2

[Event "DVM U12w 2024"]
[Site "Bad Homburg"]
[Date "2024.12.29"]
[Round "5"]
[White "Werner, Amelie"]
[Black "Khachaturyan, Viktoria"]
[Result "0-1"]
[WhiteElo "1525"]
[BlackElo "966"]
[Annotator "NA"]
[PlyCount "20"]
[EventDate "2024.12.23"]
[EventType "team-tourn"]
[EventRounds "7"]
[EventCountry "GER"]
[SourceTitle "playchess.com"]
[Source "ChessBase"]
[SourceQuality "1"]
[TimeControl "40/5400+30:1800+30"]

1. e4 {[%emt 0:00:02]} e5 {[%emt 0:00:08]} 2. Nf3 {[%emt 0:00:04]} Nc6 {[%emt 0:00:06]} 3. c3 {[%emt 0:00:03]} d5 {[%emt 0:00:43]} 4. Qa4 {[%emt 0:00:12]} Nf6 {[%emt 0:00:36]} 5. Nxe5 {[%emt 0:00:21]} Bd7 {[%emt 0:01:02]} 6. Nxd7 {[%emt 0:01:27]} Qxd7 {[%emt 0:00:30]} 7. exd5 {[%emt 0:04:40]} Qe7+ {[%emt 0:00:50]} 8. Be2 {[%emt 0:00:14]} Nxd5 {[%emt 0:00:21]} 9. d4 {[%emt 0:00:20]} O-O-O {[%emt 0:01:16]} 10. Nd2 {[%emt 0:02:14]} Nf4 {[%emt 0:00:22]} 0-1

[Event "DVM U12w 2024"]
[Site "Bad Homburg"]
[Date "2024.12.29"]
[Round "5"]
[White "Frydel, Helena"]
[Black "Wolf, Helena"]
[Result "0-1"]
[ECO "B72"]
[WhiteElo "1514"]
[BlackElo "1582"]
[Annotator "NA"]
[PlyCount "92"]
[EventDate "2024.12.23"]
[EventType "team-tourn"]
[EventRounds "7"]
[EventCountry "GER"]
[SourceTitle "playchess.com"]
[Source "ChessBase"]
[SourceQuality "1"]
[TimeControl "40/5400+30:1800+30"]

1. e4 {[%emt 0:00:03]} c5 {[%emt 0:00:08]} 2. Nf3 {[%emt 0:00:05]} d6 {[%emt 0:00:06]} 3. d4 {[%emt 0:00:04]} cxd4 {[%emt 0:00:06]} 4. Nxd4 {[%emt 0:00:12]} Nf6 {[%emt 0:00:08]} 5. Nc3 {[%emt 0:00:18]} g6 {[%emt 0:00:10]} 6. Be2 {[%emt 0:00:33]} Bg7 {[%emt 0:00:10]} 7. O-O {[%emt 0:00:10]} O-O {[%emt 0:00:06]} 8. Be3 {[%emt 0:00:33]} Nc6 {[%emt 0:00:10]} 9. Nxc6 {[%emt 0:00:47]} bxc6 {[%emt 0:00:09]} 10. Qd2 {[%emt 0:00:31]} Bd7 {[%emt 0:00:14]} 11. f3 {[%emt 0:07:24]} Qc7 {[%emt 0:01:21]} 12. Kh1 {[%emt 0:09:41]} Rab8 {[%emt 0:05:47]} 13. b3 {[%emt 0:03:41]} Rfd8 {[%emt 0:02:25]} 14. Rad1 {[%emt 0:03:05]} a5 {[%emt 0:33:01]} 15. a4 {[%emt 0:01:18]} Ra8 {[%emt 0:12:20]} 16. Bc4 {[%emt 0:09:55]} Be8 {[%emt 0:19:27]} 17. Qf2 {[%emt 0:00:00]} Rdb8 {[%emt 0:02:28]} 18. Qd2 {[%emt 0:00:00]} Rd8 {[%emt 0:01:14]} 19. Qf2 {[%emt 0:00:15]} Rdb8 {[%emt 0:00:28]} 20. Rd3 {[%emt 0:03:34]} e6 {[%emt 0:02:12]} 21. Bf4 {[%emt 0:04:29]} Rd8 {[%emt 0:01:37]} 22. Rfd1 {[%emt 0:01:54]} e5 {[%emt 0:03:21]} 23. Be3 {[%emt 0:01:06]} Rab8 {[%emt 0:00:45]} 24. Qd2 {[%emt 0:02:18]} Bf8 {[%emt 0:04:52]} 25. Bc5 {[%emt 0:03:34]} d5 {[%emt 0:01:47]} 26. Bxf8 {[%emt 0:00:21]} Kxf8 {[%emt 0:00:45]} 27. exd5 {[%emt 0:00:24]} cxd5 {[%emt 0:01:30]} 28. Nxd5 {[%emt 0:01:42]} Nxd5 {[%emt 0:00:23]} 29. Rxd5 {[%emt 0:00:07]} Rxd5 {[%emt 0:00:08]} 30. Qxd5 {[%emt 0:00:13]} Bc6 {[%emt 0:03:27]} 31. Qc5+ {[%emt 0:00:36]} Kg8 {[%emt 0:00:17]} 32. Rd6 {[%emt 0:02:01]} Rc8 {[%emt 0:00:14]} 33. Qxe5 {[%emt 0:06:24]} Re8 {[%emt 0:04:09]} 34. Be6 {[%emt 0:07:28]} fxe6 {[%emt 0:01:22]} 35. Qc5 {[%emt 0:01:39]} Rd8 {[%emt 0:00:37]} 36. Rxd8+ {[%emt 0:01:00]} Qxd8 {[%emt 0:00:05]} 37. h3 {[%emt 0:00:24]} Qd5 {[%emt 0:00:28]} 38. Qxd5 {[%emt 0:00:36]} Bxd5 {[%emt 0:00:11]} 39. c4 {[%emt 0:00:08]} Bc6 {[%emt 0:00:10]} 40. Kg1 {[%emt 0:00:07]} Kf7 {[%emt 0:00:05]} 41. Kf2 {[%emt 0:30:06]} Kf6 {[%emt 0:30:05]} 42. Ke3 {[%emt 0:00:26]} e5 {[%emt 0:00:22]} 43. g4 {[%emt 0:00:54]} g5 {[%emt 0:00:09]} 44. Kf2 {[%emt 0:00:51]} Ke6 {[%emt 0:00:04]} 45. Ke3 {[%emt 0:00:06]} Kd6 {[%emt 0:00:08]} 46. Ke2 {[%emt 0:00:47]} Kc5 {[%emt 0:00:04]} 0-1

[Event "DVM U12w 2024"]
[Site "Bad Homburg"]
[Date "2024.12.29"]
[Round "5"]
[White "Rose, Malina Rita"]
[Black "Ising, Svea"]
[Result "1/2-1/2"]
[ECO "C50"]
[WhiteElo "1503"]
[BlackElo "1221"]
[Annotator "NA"]
[PlyCount "44"]
[EventDate "2024.12.23"]
[EventType "team-tourn"]
[EventRounds "7"]
[EventCountry "GER"]
[SourceTitle "playchess.com"]
[Source "ChessBase"]
[SourceQuality "1"]
[TimeControl "40/5400+30:1800+30"]

1. e4 {[%emt 0:00:05]} e5 {[%emt 0:00:05]} 2. Nf3 {[%emt 0:00:13]} Nc6 {[%emt 0:00:14]} 3. Bc4 {[%emt 0:00:16]} Bc5 {[%emt 0:00:11]} 4. d3 {[%emt 0:00:28]} h6 {[%emt 0:00:17]} 5. Nc3 {[%emt 0:00:26]} d6 {[%emt 0:00:12]} 6. h3 {[%emt 0:00:24]} Nf6 {[%emt 0:00:15]} 7. Be3 {[%emt 0:02:12]} Bb6 {[%emt 0:00:07]} 8. Nd5 {[%emt 0:00:33]} Be6 {[%emt 0:03:18]} 9. Nxf6+ {[%emt 0:10:29]} Qxf6 {[%emt 0:00:21]} 10. Bxe6 {[%emt 0:00:27]} fxe6 {[%emt 0:00:10]} 11. Qe2 {[%emt 0:01:48]} O-O {[%emt 0:02:16]} 12. O-O-O {[%emt 0:02:50]} d5 {[%emt 0:01:36]} 13. exd5 {[%emt 0:01:46]} exd5 {[%emt 0:00:27]} 14. Rhf1 {[%emt 0:02:51]} d4 {[%emt 0:02:59]} 15. Bd2 {[%emt 0:01:03]} Qe6 {[%emt 0:02:16]} 16. Kb1 {[%emt 0:01:43]} a5 {[%emt 0:05:11]} 17. Qe4 {[%emt 0:03:36]} Nb4 {[%emt 0:05:18]} 18. b3 {[%emt 0:01:35]} Rfe8 {[%emt 0:16:58]} 19. Rfe1 {[%emt 0:06:45]} Qc6 {[%emt 0:03:04]} 20. Qxc6 {[%emt 0:02:42]} Nxc6 {[%emt 0:00:10]} 21. Re2 {[%emt 0:01:51]} Re7 {[%emt 0:04:29]} 22. Rde1 {[%emt 0:01:18]} Rae8 {[%emt 0:00:24]} 1/2-1/2

[Event "DVM U12w 2024"]
[Site "Bad Homburg"]
[Date "2024.12.29"]
[Round "5"]
[White "Lange, Lene Marie"]
[Black "Gelbach, Julietta"]
[Result "1-0"]
[ECO "A45"]
[WhiteElo "1501"]
[BlackElo "855"]
[Annotator "NA"]
[PlyCount "85"]
[EventDate "2024.12.23"]
[EventType "team-tourn"]
[EventRounds "7"]
[EventCountry "GER"]
[SourceTitle "playchess.com"]
[Source "ChessBase"]
[SourceQuality "1"]
[TimeControl "40/5400+30:1800+30"]

1. d4 {[%emt 0:00:06]} c5 {[%emt 0:00:10]} 2. c3 {[%emt 0:00:27]} Nf6 {[%emt 0:00:08]} 3. Bf4 {[%emt 0:00:22]} Qb6 {[%emt 0:00:34]} 4. Qc2 {[%emt 0:01:19]} Nc6 {[%emt 0:01:15]} 5. e3 {[%emt 0:03:26]} e6 {[%emt 0:01:30]} 6. Bd3 {[%emt 0:05:05]} g6 {[%emt 0:02:28]} 7. Nf3 {[%emt 0:03:22]} Bg7 {[%emt 0:00:49]} 8. O-O {[%emt 0:04:50]} O-O {[%emt 0:01:08]} 9. Nbd2 {[%emt 0:07:06]} d5 {[%emt 0:02:02]} 10. b3 {[%emt 0:03:14]} Bd7 {[%emt 0:02:58]} 11. Bd6 {[%emt 0:02:47]} Rfe8 {[%emt 0:02:55]} 12. Bxc5 {[%emt 0:00:50]} Qc7 {[%emt 0:00:53]} 13. c4 {[%emt 0:03:36]} e5 {[%emt 0:01:56]} 14. dxe5 {[%emt 0:06:40]} Nxe5 {[%emt 0:01:32]} 15. Nxe5 {[%emt 0:00:54]} Rxe5 {[%emt 0:01:49]} 16. cxd5 {[%emt 0:05:14]} Rh5 {[%emt 0:03:03]} 17. Nf3 {[%emt 0:03:18]} Ng4 {[%emt 0:01:38]} 18. Bd4 {[%emt 0:01:52]} Qd6 {[%emt 0:02:35]} 19. h3 {[%emt 0:02:12]} Ne5 {[%emt 0:02:04]} 20. Bxe5 {[%emt 0:04:29]} Bxe5 {[%emt 0:01:05]} 21. Rac1 {[%emt 0:01:54]} Bxh3 {[%emt 0:03:49]} 22. gxh3 {[%emt 0:01:55]} Rxh3 {[%emt 0:00:37]} 23. Nxe5 {[%emt 0:00:17]} Qxe5 {[%emt 0:00:29]} 24. f4 {[%emt 0:00:46]} Qxd5 {[%emt 0:00:18]} 25. Be4 {[%emt 0:00:49]} Qh5 {[%emt 0:01:24]} 26. Qd1 {[%emt 0:01:13]} Rg3+ {[%emt 0:01:35]} 27. Bg2 {[%emt 0:03:03]} Qh3 {[%emt 0:01:01]} 28. Rf2 {[%emt 0:00:46]} Qe6 {[%emt 0:01:06]} 29. Rc3 {[%emt 0:02:01]} Qe7 {[%emt 0:02:09]} 30. Qd4 {[%emt 0:01:14]} Rd8 {[%emt 0:00:50]} 31. Qc4 {[%emt 0:02:59]} Rd1+ {[%emt 0:00:28]} 32. Rf1 {[%emt 0:00:30]} Rd2 {[%emt 0:03:21]} 33. Rf2 {[%emt 0:03:13]} Rd6 {[%emt 0:02:47]} 34. Qc5 {[%emt 0:05:10]} Qd7 {[%emt 0:05:35]} 35. Qc8+ {[%emt 0:00:40]} Qxc8 {[%emt 0:00:30]} 36. Rxc8+ {[%emt 0:00:09]} Kg7 {[%emt 0:00:05]} 37. Rc3 {[%emt 0:00:22]} Kf6 {[%emt 0:00:25]} 38. Kh2 {[%emt 0:00:09]} Rg4 {[%emt 0:01:08]} 39. Bxb7 {[%emt 0:00:36]} h5 {[%emt 0:01:11]} 40. Rc6 {[%emt 0:01:17]} Rxc6 {[%emt 0:00:16]} 41. Bxc6 {[%emt 0:30:15]} g5 {[%emt 0:30:25]} 42. Bf3 {[%emt 0:00:21]} Rh4+ {[%emt 0:00:24]} 43. Kg3 {[%emt 0:00:16]} 1-0

[Event "DVM U12w 2024"]
[Site "Bad Homburg"]
[Date "2024.12.29"]
[Round "5"]
[White "Ruddat, Maila"]
[Black "Ramien, Eva"]
[Result "1-0"]
[ECO "C54"]
[WhiteElo "1486"]
[BlackElo "1542"]
[Annotator "NA"]
[PlyCount "53"]
[EventDate "2024.12.23"]
[EventType "team-tourn"]
[EventRounds "7"]
[EventCountry "GER"]
[SourceTitle "playchess.com"]
[Source "ChessBase"]
[SourceQuality "1"]
[TimeControl "40/5400+30:1800+30"]

1. e4 {[%emt 0:00:33]} e5 {[%emt 0:00:04]} 2. Nf3 {[%emt 0:01:01]} Nc6 {[%emt 0:00:04]} 3. Bc4 {[%emt 0:01:20]} Bc5 {[%emt 0:00:05]} 4. c3 {[%emt 0:00:32]} Nf6 {[%emt 0:00:05]} 5. d3 {[%emt 0:00:42]} h6 {[%emt 0:00:05]} 6. Nbd2 {[%emt 0:01:16]} d6 {[%emt 0:00:11]} 7. Bb3 {[%emt 0:00:50]} Ne7 {[%emt 0:00:15]} 8. h3 {[%emt 0:00:44]} Ng6 {[%emt 0:00:15]} 9. Nf1 {[%emt 0:00:58]} Bb6 {[%emt 0:00:15]} 10. Ng3 {[%emt 0:00:35]} c6 {[%emt 0:00:56]} 11. O-O {[%emt 0:07:45]} O-O {[%emt 0:00:06]} 12. Re1 {[%emt 0:02:43]} Re8 {[%emt 0:00:03]} 13. Bc2 {[%emt 0:11:09]} Be6 {[%emt 0:00:12]} 14. b3 {[%emt 0:02:17]} Bc8 {[%emt 0:03:07]} 15. Bb2 {[%emt 0:01:51]} Bc7 {[%emt 0:04:53]} 16. d4 {[%emt 0:00:28]} exd4 {[%emt 0:00:23]} 17. cxd4 {[%emt 0:00:23]} b6 {[%emt 0:01:07]} 18. Qd2 {[%emt 0:02:12]} Bb7 {[%emt 0:00:23]} 19. Rad1 {[%emt 0:00:46]} Rb8 {[%emt 0:01:48]} 20. Kh1 {[%emt 0:04:47]} Kh8 {[%emt 0:01:09]} 21. b4 {[%emt 0:06:13]} a6 {[%emt 0:00:25]} 22. a3 {[%emt 0:00:23]} Ra8 {[%emt 0:00:15]} 23. Bb3 {[%emt 0:00:35]} Kg8 {[%emt 0:00:13]} 24. Bc2 {[%emt 0:00:50]} Kh8 {[%emt 0:01:55]} 25. Nf5 {[%emt 0:01:47]} Kh7 {[%emt 0:03:40]} 26. Bb3 {[%emt 0:00:44]} Rf8 {[%emt 0:05:05]} 27. Qe3 {[%emt 0:07:14]} 1-0

[Event "DVM U12w 2024"]
[Site "Bad Homburg"]
[Date "2024.12.29"]
[Round "5"]
[White "Albrecht, Sidney Jenna"]
[Black "Doescher, Nayla"]
[Result "1-0"]
[ECO "A29"]
[WhiteElo "1483"]
[BlackElo "1437"]
[Annotator "NA RC"]
[PlyCount "129"]
[EventDate "2024.12.23"]
[EventType "team-tourn"]
[EventRounds "7"]
[EventCountry "GER"]
[SourceTitle "playchess.com"]
[Source "ChessBase"]
[SourceQuality "1"]
[TimeControl "40/5400+30:1800+30"]

1. c4 {[%emt 0:00:01]} e5 {[%emt 0:00:01]} 2. Nc3 {[%emt 0:00:06]} Nc6 {[%emt 0:00:10]} 3. Nf3 {[%emt 0:00:08]} Nf6 {[%emt 0:00:12]} 4. g3 {[%emt 0:00:08]} Bb4 {[%emt 0:00:17]} 5. Bg2 {[%emt 0:00:08]} Bxc3 {[%emt 0:00:17]} 6. bxc3 {[%emt 0:00:08]} d6 {[%emt 0:00:24]} 7. O-O {[%emt 0:00:15]} O-O {[%emt 0:00:13]} 8. d3 {[%emt 0:00:27]} Nh5 {[%emt 0:01:02]} 9. e4 {[%emt 0:04:07]} f5 {[%emt 0:11:09]} 10. Nh4 {[%emt 0:05:39]} Nf6 {[%emt 0:14:49]} 11. exf5 {[%emt 0:06:09]} Ne8 {[%emt 0:05:02]} 12. Bd5+ {[%emt 0:01:41]} Kh8 {[%emt 0:00:53]} 13. Qh5 {[%emt 0:01:04]} Ne7 {[%emt 0:11:57]} 14. Bg5 {[%emt 0:15:30]} Nf6 {[%emt 0:02:58]} 15. Bxf6 {[%emt 0:01:09]} Rxf6 {[%emt 0:01:28]} 16. Be4 {[%emt 0:06:35]} c6 {[%emt 0:05:32]} 17. Ng6+ {[%emt 0:03:04]} Kg8 {[%emt 0:04:06]} 18. Nxe7+ {[%emt 0:01:22]} Qxe7 {[%emt 0:00:10]} 19. g4 {[%emt 0:01:05]} Rh6 {[%emt 0:02:25]} 20. f6 {[%emt 0:01:51]} Rxh5 {[%emt 0:04:44]} 21. fxe7 {[%emt 0:00:12]} Bxg4 {[%emt 0:00:22]} 22. Rab1 {[%emt 0:01:41]} Kf7 {[%emt 0:08:42]} 23. Kh1 {[%emt 0:02:08]} Bf5 {[%emt 0:02:50]} 24. Bxf5 {[%emt 0:00:58]} Rxf5 {[%emt 0:00:11]} 25. Rxb7 {[%emt 0:01:00]} Rf6 {[%emt 0:02:20]} 26. Rg1 {[%emt 0:01:56]} g6 {[%emt 0:00:54]} 27. e8=Q+ {[%emt 0:04:39]} Kxe8 {[%emt 0:00:51]} 28. Rxh7 {[%emt 0:00:12]} Rxf2 {[%emt 0:03:51]} 29. Rxg6 {[%emt 0:00:36]} Rd8 {[%emt 0:02:28]} 30. Rxa7 {[%emt 0:02:51]} Rd7 {[%emt 0:01:55]} 31. Rg8+ {[%emt 0:04:55]} Ke7 {[%emt 0:02:11]} 32. Rg7+ {[%emt 0:00:29]} Ke6 {[%emt 0:01:27]} 33. Rgxd7 {[%emt 0:00:38]} Rd2 {[%emt 0:00:45]} 34. Rf7 {[%emt 0:00:39]} d5 {[%emt 0:01:25]} 35. cxd5+ {[%emt 0:00:56]} Kxd5 {[%emt 0:00:28]} 36. Ra5+ {[%emt 0:00:54]} Ke6 {[%emt 0:00:18]} 37. Raa7 {[%emt 0:01:23]} Rd1+ {[%emt 0:01:21]} 38. Kg2 {[%emt 0:00:13]} Rd2+ {[%emt 0:00:44]} 39. Kf3 {[%emt 0:00:40]} Rxd3+ {[%emt 0:00:56]} 40. Ke4 {[%emt 0:00:25]} Rxc3 {[%emt 0:00:34]} 41. Rfe7+ {[%emt 0:31:59]} Kf6 {[%emt 0:30:58]} 42. Rxe5 {[%emt 0:00:30]} Rc4+ {[%emt 0:00:19]} 43. Kd3 {[%emt 0:00:16]} Rh4 {[%emt 0:01:33]} 44. Re3 {[%emt 0:01:49]} Rxh2 {[%emt 0:01:11]} 45. Re2 {[%emt 0:02:12]} Rh3+ {[%emt 0:00:26]} 46. Kd2 {[%emt 0:00:35]} Rh8 {[%emt 0:01:43]} 47. Ra3 {[%emt 0:02:14]} Kf5 {[%emt 0:01:11]} 48. Rf3+ {[%emt 0:00:45]} Kg4 {[%emt 0:00:21]} 49. Rf7 {[%emt 0:02:28]} Kg3 {[%emt 0:00:58]} 50. Ke1 {[%emt 0:00:52]} Rh1+ {[%emt 0:00:54]} 51. Rf1 {[%emt 0:00:17]} Rh8 {[%emt 0:00:49]} 52. Re7 {[%emt 0:02:05]} Rb8 {[%emt 0:01:31]} 53. Rg7+ {[%emt 0:01:07]} Kh2 {[%emt 0:00:18]} 54. Kf2 {[%emt 0:02:25]} Rf8+ {[%emt 0:00:37]} 55. Ke2 {[%emt 0:00:23]} Re8+ {[%emt 0:00:18]} 56. Kd3 {[%emt 0:00:34]} Rd8+ {[%emt 0:02:10]} 57. Ke4 {[%emt 0:00:58]} Re8+ {[%emt 0:00:45]} 58. Kd4 {[%emt 0:00:10]} Rd8+ {[%emt 0:00:00]} 59. Ke5 {[%emt 0:00:00]} Rd3 {[%emt 0:00:00]} 60. Rf6 {[%emt 0:00:00]} Rh3 {[%emt 0:00:00]} 61. Rxc6 {[%emt 0:00:00]} Rh5+ {[%emt 0:00:00]} 62. Kf6 {[%emt 0:00:00]} Rh6+ {[%emt 0:00:00]} 63. Rg6 {[%emt 0:00:00]} Rh3 {[%emt 0:00:00]} 64. Rc5 {[%emt 0:00:00]} Rf3+ {[%emt 0:00:00]} 65. Kg7 {[%emt 0:00:00]} 1-0